{"text_format":"2","workbook":"xlsx","n_sheets":2,"sheets":["Tagebuch","Legende"],"not_rendered":{"charts":0,"images":0,"macros":0,"external_links":0,"defined_names":0,"comments":0,"pivot_tables":0},"unopened":[],"bounds":{"document_bytes":16777216,"sheet_cells":100000,"run_cost":"one","rows_first":2000,"rows_last":500,"rows_between":2000,"halvings":0,"cell_chars":16384,"cell_head_chars":4096},"cells_cut":0,"cells_raw":0,"read":"whole","date_system":"1900"}

{"sheet":"Tagebuch","index":0,"n_rows":42,"n_cols":13,"rows_kept":42,"cut":false,"hidden":false,"merged":[[0,1,1,12]]}
[null,"Schlaftagebuch*"]
[]
[null,"Morgen vom","LAUS","LAN","ZIB","SD","SE %","SL","AWZ","SQ","Nap","Meds","Kommentar"]
[]
[null,"2016-02-02","23:00:00","06:30:00",{"$f":"HOUR(24-($C5-$D5))*60+MINUTE(24-($C5-$D5))","v":450},300,{"$f":"F5/E5*100","v":66.666666666666657},1,0,1,"ja",0,"Beispiel"]
{"$rows_empty":27}
[{"$nulls":4},{"$f":"HOUR(24-($C33-$D33))*60+MINUTE(24-($C33-$D33))","v":0},null,{"$f":"F33/E33*100","v":{"$error":"#DIV/0!"}}]
[{"$nulls":4},0,null,{"$error":"#DIV/0!"}]
[{"$nulls":4},0,null,{"$error":"#DIV/0!"}]
[{"$nulls":4},0,null,{"$error":"#DIV/0!"}]
[{"$nulls":4},0,null,{"$error":"#DIV/0!"}]
[{"$nulls":4},0,null,{"$error":"#DIV/0!"}]
[{"$nulls":4},0,null,{"$error":"#DIV/0!"}]
[{"$nulls":4},0,null,{"$error":"#DIV/0!"}]
[{"$nulls":4},0,null,{"$error":"#DIV/0!"}]
[{"$nulls":4},0,null,{"$error":"#DIV/0!"}]

{"sheet":"Legende","index":1,"n_rows":15,"n_cols":2,"rows_kept":15,"cut":false,"hidden":false,"merged":[[0,0,0,1]]}
["*"]
["Morgen vom","Tag, den dem man aufwacht und die vergangene Nacht bewertet"]
["Mens","Tag der Periode"]
["LAUS","Licht aus"]
["LAN","Licht an"]
["ZIB","Zeit im Bett"]
["SD","Schlafdauer (ZIB+X)"]
["SE %","Schlafeffizienz ni %"]
["SL","Schlaflatenz (wie lange dauert es, bis ich schlafe)"]
["AWZ","Aufwachzeiten (wie oft wache ich währen der Nacht auf)"]
["SQ","Schlafqualität (Schulnotenbewertung)"]
["Nap","Mittagsschlaf"]
["Meds","Medikamente"]
["Kommentar","Was könnte den Schlaf beeinflusst haben?"]
["GHSN","Gefühlte \"Halbschlaf\" Nacht"]